bitfinex/quotes_BTCUSD_20250303
["timestamp","ask_amount","ask_price","bid_price","bid_amount"]
[1741033286233,0.01311041,86499.0,86433.0,0.0751]
[1741033286492,2.557095,86498.0,86441.0,0.231371]
[1741033286709,2.557095,86497.0,86449.0,0.231348]
[1741033286872,0.3,86459.0,86449.0,0.231348]
[1741033287084,0.3,86459.0,86442.0,0.231368]
[1741033287332,0.462512,86485.0,86431.0,0.08688959]
[1741033287506,2.889797,86512.0,86430.0,0.01555]
[1741033287507,2.420469,86484.0,86439.0,0.08688959]
[1741033287717,0.127007,86483.0,86433.0,0.08688959]
[1741033287927,0.3,86459.0,86449.0,0.231349]
[1741033288088,0.00011854,86483.0,86446.0,0.08688959]
[1741033288423,0.3,86481.0,86431.0,0.08850896]
[1741033288639,0.3,86479.0,86430.0,0.01555]
[1741033288868,0.3,86455.0,86430.0,0.01555]
[1741033289062,0.3,86449.0,86430.0,0.01555]
[1741033289296,0.001,86459.0,86434.0,0.08688959]
[1741033289568,0.3,86451.0,86430.0,0.01555]
[1741033289928,0.3,86446.0,86430.0,0.01555]
[1741033290132,0.3,86447.0,86430.0,0.01594569]
[1741033290361,0.01311041,86470.0,86430.0,0.01594569]
[1741033290518,0.231398,86431.0,86430.0,0.01594569]
[1741033290940,0.231372,86441.0,86430.0,0.01594569]
[1741033291136,1.15647,86471.0,86430.0,0.01594569]
[1741033291341,0.231484,86399.0,86398.0,0.0160482]
[1741033291544,0.01311041,86435.0,86394.0,0.00410864]
[1741033291767,1.47828385,86434.0,86394.0,0.00410864]
[1741033291966,0.01551263,86435.0,86405.0,0.08688959]
[1741033292164,0.24191285,86434.0,86394.0,0.00410864]
[1741033292411,0.231398,86431.0,86430.0,0.003]
[1741033292817,0.231438,86417.0,86403.0,0.231471]
[1741033293021,0.00039513,86431.0,86396.0,0.08688959]
[1741033293171,0.231451,86412.0,86399.0,0.231483]
[1741033293350,0.231451,86412.0,86398.0,0.231484]
[1741033293555,0.00039513,86431.0,86394.0,0.00410864]
[1741033293761,0.00161985,86430.0,86396.0,0.231492]
[1741033293960,0.231406,86428.0,86395.0,0.231494]
[1741033294201,0.00161985,86427.0,86394.0,0.09099823]
[1741033294355,0.00161985,86427.0,86394.0,0.32249523]
[1741033294721,0.231438,86416.0,86394.0,0.09099823]
[1741033294957,0.00039513,86431.0,86399.0,0.08688959]
[1741033295178,0.23144,86416.0,86401.0,0.231476]
[1741033295346,0.00039513,86431.0,86405.0,0.08688959]
[1741033295347,0.231409,86427.0,86405.0,0.08688959]
[1741033295548,0.001,86417.0,86414.0,0.231443]
[1741033295757,0.001,86417.0,86416.0,0.231438]
[1741033295958,0.00039513,86431.0,86413.0,0.08688959]
[1741033296135,0.231416,86425.0,86414.0,0.08688959]
[1741033296340,0.001,86416.0,86411.0,0.231451]
[1741033296542,0.001,86416.0,86410.0,0.231453]
[1741033296746,0.001,86416.0,86415.0,0.231441]
[1741033296921,0.23142,86423.0,86414.0,0.08688959]
[1741033297121,0.231406,86428.0,86403.0,0.277671]
[1741033297323,0.00039513,86431.0,86411.0,0.231449]
[1741033297549,0.231423,86422.0,86412.0,0.00162008]
[1741033297724,0.231413,86426.0,86412.0,0.231449]
[1741033297925,0.00039513,86431.0,86407.0,0.08688959]
[1741033298128,0.00039513,86431.0,86414.0,0.08688959]
[1741033298324,0.00039513,86431.0,86400.0,0.00167008]
[1741033298325,0.231409,86427.0,86411.0,0.08688959]
[1741033298572,0.231409,86428.0,86413.0,0.231445]
[1741033298914,0.231438,86416.0,86415.0,0.001]
[1741033299317,0.00039513,86431.0,86391.0,0.08588959]
[1741033299464,0.11364685,86430.0,86389.0,0.231509]
[1741033299630,0.231437,86417.0,86391.0,0.08588959]
[1741033299837,0.001,86427.0,86408.0,0.231459]
[1741033300054,0.00039513,86431.0,86400.0,0.08588959]
[1741033300256,2.557095,86430.0,86380.0,0.08588959]
[1741033300533,0.001,86416.0,86377.0,0.01555]
[1741033300781,0.231537,86379.0,86377.0,0.01555]
[1741033301283,0.23154,86378.0,86377.0,0.0038888]
[1741033301756,0.01565054,86378.0,86377.0,0.0038888]
[1741033301978,0.00161985,86420.0,86377.0,0.00400701]
[1741033302232,0.231497,86394.0,86380.0,0.231533]
[1741033302449,0.231487,86398.0,86378.0,0.08588959]
[1741033302652,0.231511,86389.0,86377.0,0.00400701]
[1741033302872,0.2475469,86398.0,86377.0,0.00400701]
[1741033302873,0.0160599,86398.0,86377.0,0.00400701]
[1741033303044,0.231496,86395.0,86378.0,0.23154]
[1741033303246,0.01411041,86429.0,86377.0,0.00400701]
[1741033303485,0.23154,86378.0,86377.0,0.00400701]
[1741033303657,0.01411041,86424.0,86377.0,0.00400701]
[1741033303880,0.231524,86384.0,86377.0,0.00400701]
[1741033304078,1.157126,86421.0,86377.0,0.00400701]
[1741033304278,0.01411041,86424.0,86377.0,0.00400701]
[1741033304279,2.55871485,86420.0,86377.0,0.00400701]
[1741033304477,0.23154,86379.0,86377.0,0.00400701]
[1741033304680,0.462894,86413.0,86377.0,0.00400701]
[1741033304885,0.1,86426.0,86377.0,0.00400701]
[1741033304886,0.231527,86383.0,86377.0,0.00400701]
[1741033305090,0.1494,86432.0,86378.0,0.08588959]
[1741033305289,0.1494,86432.0,86377.0,0.00400701]
[1741033305290,0.23151,86390.0,86377.0,0.00400701]
[1741033305559,0.01411041,86431.0,86377.0,0.00400701]
[1741033305760,0.1494,86432.0,86377.0,0.00400701]
[1741033305761,0.23154,86378.0,86377.0,0.00400701]
[1741033305972,0.23149,86378.0,86377.0,0.00400701]
[1741033306398,0.231588,86360.0,86359.0,0.01288961]
[1741033306618,0.231585,86362.0,86359.0,0.0130082]
[1741033306810,0.231552,86374.0,86359.0,0.0130082]
[1741033307025,1.257337,86406.0,86359.0,0.0130082]
[1741033307229,1.87271085,86405.0,86359.0,0.0130082]
[1741033307554,0.120768,86404.0,86377.0,0.0003396]
[1741033307773,0.00161985,86403.0,86377.0,0.0003396]
[1741033307964,0.231513,86388.0,86377.0,0.0003396]
[1741033308165,1.157096,86424.0,86377.0,0.0003396]
[1741033308166,0.15925057,86434.0,86377.0,0.0003396]
[1741033308294,0.0001698,86432.0,86383.0,0.08588959]
[1741033308493,1.66964485,86431.0,86389.0,0.08588959]
[1741033308711,0.0001698,86432.0,86393.0,0.08588959]
[1741033310697,0.231478,86401.0,86400.0,5e-05]
[1741033311662,0.591474,86401.0,86361.0,0.08588959]
[1741033311866,1.89637085,86400.0,86352.0,0.0467]
[1741033312007,0.120829,86399.0,86356.0,0.08588959]
[1741033312204,0.00161985,86398.0,86363.0,0.08588959]
[1741033312389,0.0777,86414.0,86352.0,0.0467]
[1741033312390,0.00161985,86405.0,86377.0,0.05]
[1741033312596,0.23154,86378.0,86377.0,0.05]
[1741033313201,0.23153,86382.0,86377.0,0.05]
[1741033313424,0.23154,86378.0,86377.0,0.05]
[1741033313664,0.231535,86380.0,86377.0,0.05011859]
[1741033313854,0.23152,86386.0,86377.0,0.05011859]
[1741033314009,0.231417,86424.0,86377.0,0.13600818]
[1741033314225,0.231417,86424.0,86378.0,0.08588959]
[1741033314226,1.61468585,86423.0,86378.0,0.08588959]
[1741033314427,0.231515,86388.0,86377.0,0.13600818]
[1741033314628,0.231444,86414.0,86390.0,0.08588959]
[1741033314856,0.02827282,86465.0,86414.0,0.0817]
[1741033315029,0.02827282,86465.0,86419.0,0.1]
[1741033315030,0.00161985,86464.0,86419.0,0.1]
[1741033315364,0.00161985,86464.0,86423.0,0.1]
[1741033315679,0.06326094,86464.0,86432.0,0.1]
[1741033315885,0.06326094,86464.0,86415.0,0.10161971]
[1741033316012,0.06365639,86464.0,86432.0,0.231394]
[1741033316212,0.231348,86450.0,86432.0,0.1]
[1741033316598,0.06365639,86464.0,86432.0,0.1]
[1741033316599,0.06203654,86464.0,86443.0,0.1]
[1741033316795,0.00161985,86463.0,86443.0,0.1]
[1741033316983,0.0020153,86464.0,86451.0,0.231343]
[1741033317218,0.231316,86462.0,86450.0,0.231346]
[1741033317366,0.00039545,86464.0,86432.0,0.0475]
[1741033317367,0.00161985,86461.0,86432.0,0.0475]
[1741033317805,0.231393,86433.0,86425.0,0.1]
[1741033318020,1.156436,86473.0,86425.0,0.1]
[1741033318021,0.231387,86436.0,86425.0,0.1]
[1741033318220,2.890414,86493.0,86415.0,0.7464]
[1741033318221,0.1,86495.0,86432.0,0.1]
[1741033318425,0.21296985,86481.0,86441.0,0.1]
[1741033318621,0.00161985,86481.0,86439.0,0.1]
[1741033318850,0.00161985,86481.0,86416.0,0.00161986]
[1741033318851,0.00161985,86481.0,86451.0,0.1]
[1741033319050,0.231318,86461.0,86460.0,0.1]
[1741033319180,0.00178955,86491.0,86454.0,0.0486]
[1741033319181,0.00039545,86481.0,86454.0,0.0486]
[1741033319399,0.23132,86461.0,86452.0,0.0759]
[1741033319602,0.00039545,86481.0,86455.0,0.04209479]
[1741033319800,0.00039545,86481.0,86460.0,0.231319]
[1741033319801,0.00161985,86480.0,86460.0,0.231319]
[1741033320021,0.00161985,86480.0,86453.0,0.04209479]
[1741033320591,0.00039545,86481.0,86469.0,0.04209479]
[1741033320804,0.00039545,86481.0,86463.0,0.23131]
[1741033321016,0.00039545,86481.0,86437.0,0.18788]
[1741033321017,0.0024192,86481.0,86438.0,0.3]
[1741033321214,0.00039545,86481.0,86480.0,0.231267]
[1741033321646,0.0020236,86517.0,86490.0,0.53124]
[1741033321863,0.0020236,86517.0,86490.0,0.23124]
[1741033322064,0.015549,86535.0,86490.0,0.23124]
[1741033322266,0.00028829,86491.0,86488.0,0.231245]
[1741033322466,0.00028829,86491.0,86490.0,0.28014]
[1741033322680,0.00028829,86491.0,86490.0,0.0489]
[1741033322856,0.00028829,86491.0,86490.0,0.04970643]
[1741033323086,0.00028829,86491.0,86490.0,0.0489]
[1741033323468,0.00028829,86491.0,86469.0,0.0462]
[1741033323622,0.00028829,86491.0,86477.0,0.7]
[1741033324400,0.00028829,86491.0,86467.0,0.231301]
[1741033324401,0.00398105,86470.0,86458.0,0.26328]
[1741033324576,0.00398105,86470.0,86441.0,0.0794]
[1741033324577,0.231342,86452.0,86441.0,0.0794]
[1741033324840,0.231342,86452.0,86430.0,0.0466]
[1741033325142,0.346945,86469.0,86430.0,0.0466]
[1741033325143,0.23128,86476.0,86431.0,0.0008095]
[1741033325330,0.115549,86518.0,86435.0,0.7]
[1741033325331,0.0001697,86491.0,86435.0,0.7]
[1741033325610,0.03340388,86470.0,86469.0,0.231296]
[1741033325810,0.03340388,86470.0,86451.0,0.3771]
[1741033325985,0.03340388,86470.0,86469.0,0.231296]
[1741033326188,0.0001697,86491.0,86490.0,0.23124]
[1741033326628,0.00028829,86491.0,86490.0,0.23124]
[1741033327503,0.015549,86518.0,86499.0,0.231216]
[1741033327669,0.015549,86518.0,86499.0,0.314016]
[1741033328859,0.015549,86518.0,86499.0,0.231216]
[1741033329491,0.015549,86518.0,86486.0,0.231248]
[1741033329678,0.00202294,86517.0,86484.0,0.076]
[1741033329819,0.00202324,86499.0,86482.0,0.18388]
[1741033330022,0.231237,86492.0,86482.0,0.18388]
[1741033330249,0.231259,86483.0,86482.0,0.18399859]
[1741033330464,0.231259,86483.0,86482.0,0.00011859]
[1741033330998,0.231236,86492.0,86447.0,0.18384]
[1741033330999,0.231321,86460.0,86448.0,0.7]
[1741033331125,0.1311,86499.0,86448.0,0.7]
[1741033331331,0.23135,86449.0,86448.0,0.7]
[1741033331526,0.1,86488.0,86414.0,0.0827]
[1741033331731,0.231256,86485.0,86480.0,4e-07]
[1741033331957,0.231264,86481.0,86480.0,4e-07]
[1741033332160,0.231256,86485.0,86480.0,4e-07]
[1741033332366,0.231264,86481.0,86480.0,4e-07]
[1741033332567,0.23138248,86481.0,86480.0,4e-07]
[1741033333225,0.316413,86480.0,86408.0,0.18744]
[1741033333386,0.00202447,86479.0,86427.0,0.231407]
[1741033333583,0.00202447,86479.0,86434.0,0.231388]
[1741033333787,0.120195,86478.0,86409.0,0.3]
[1741033333989,0.231352,86449.0,86409.0,0.3]
[1741033334227,0.1,86496.0,86409.0,0.531456]
[1741033334591,0.0498,86487.0,86406.0,0.0466]
[1741033334793,1.156478,86470.0,86406.0,0.0466]
[1741033335004,0.231413,86426.0,86401.0,0.1838]
[1741033335216,2.890722,86484.0,86402.0,0.231476]
[1741033335422,0.55263058,86483.0,86401.0,0.13054626]
[1741033335627,0.49545095,86482.0,86401.0,0.13054626]
[1741033335837,0.1,86478.0,86401.0,0.13054626]
[1741033336042,2.45912007,86477.0,86401.0,0.13054626]
[1741033336259,0.0478,86451.0,86401.0,0.13054626]
[1741033336466,0.1121071,86450.0,86401.0,0.13054626]
[1741033336688,0.1729401,86450.0,86401.0,0.13054626]
[1741033336901,0.1729401,86450.0,86394.0,0.01555]
[1741033336902,0.231472,86404.0,86394.0,0.01555]
[1741033337080,0.00202539,86403.0,86377.0,0.02461245]
[1741033337329,0.00202584,86409.0,86377.0,0.02461245]
[1741033337714,0.00202554,86428.0,86377.0,0.0158896]
[1741033338137,0.00202533,86427.0,86378.0,0.1295]
[1741033338349,0.231456,86410.0,86395.0,0.231494]
[1741033338548,0.231431,86419.0,86378.0,0.1295]
[1741033338752,0.00011837,86427.0,86378.0,0.1295]
[1741033338966,0.231441,86415.0,86378.0,0.1295]
[1741033339173,0.00011837,86427.0,86378.0,0.1295]
[1741033339343,0.231453,86411.0,86378.0,0.1295]
[1741033339549,0.231445,86414.0,86397.0,0.231488]
[1741033339974,0.0158838,86415.0,86383.0,0.18732]
[1741033340199,0.231478,86402.0,86383.0,0.18732]
[1741033340402,0.231524,86384.0,86383.0,0.18732]
[1741033340777,0.231527,86383.0,86367.0,0.231567]
[1741033341148,0.231527,86383.0,86359.0,0.06098961]
[1741033341149,0.23154,86378.0,86359.0,0.01288961]
[1741033341285,0.1792074,86380.0,86359.0,0.01288961]
[1741033341483,0.00202631,86379.0,86331.0,0.157504]
[1741033341687,0.352422,86378.0,86334.0,0.7]
[1741033341889,0.23154,86378.0,86377.0,4.5e-07]
[1741033342316,0.28024,86378.0,86377.0,4.5e-07]
[1741033342487,0.28890708,86378.0,86377.0,4.5e-07]
[1741033343296,0.23154,86378.0,86377.0,4.5e-07]
[1741033343516,0.01549195,86379.0,86378.0,0.23154]
[1741033343692,0.01549195,86379.0,86377.0,4.5e-07]
[1741033343693,0.231515,86388.0,86377.0,4.5e-07]
[1741033343928,0.231487,86398.0,86384.0,0.231522]
[1741033344084,0.0482,86424.0,86383.0,0.0003396]
[1741033344292,0.00202535,86423.0,86383.0,0.0003396]
[1741033344495,0.23145,86412.0,86397.0,0.231489]
[1741033344778,0.23145,86412.0,86383.0,0.0003396]
[1741033344779,0.07649952,86424.0,86383.0,0.0003396]
[1741033344994,0.01973686,86424.0,86423.0,0.231419]
[1741033345221,0.00202467,86446.0,86380.0,0.1]
[1741033345422,0.00202467,86446.0,86370.0,0.4091217]
[1741033345423,0.01937114,86424.0,86378.0,0.1]
[1741033345625,0.00202467,86446.0,86389.0,0.3]
[1741033345837,0.00202478,86429.0,86383.0,0.0003396]
[1741033346048,0.231456,86410.0,86383.0,0.0003396]
[1741033346251,0.231413,86426.0,86384.0,0.231524]
[1741033346399,0.03580577,86430.0,86395.0,0.347238]
[1741033346612,0.00011844,86426.0,86413.0,0.231444]
[1741033346922,0.00011844,86426.0,86383.0,0.1003396]
[1741033346923,0.00011844,86426.0,86394.0,0.347242]
[1741033347150,0.231467,86406.0,86394.0,0.231495]
[1741033347270,0.00011844,86426.0,86384.0,0.231524]
[1741033347482,0.01087033,86426.0,86383.0,0.0003396]
[1741033347671,0.231414,86425.0,86383.0,0.0503396]
[1741033347900,0.0020255,86424.0,86383.0,0.0503396]
[1741033348126,0.231524,86384.0,86383.0,0.0503396]
[1741033349768,0.231517,86387.0,86383.0,0.0503396]
[1741033349973,0.03561797,86430.0,86383.0,0.2818656]
[1741033350176,0.00202577,86422.0,86383.0,0.0503396]
[1741033350398,0.110309,86421.0,86383.0,0.0503396]
[1741033350602,0.231524,86384.0,86383.0,0.0503396]
[1741033350805,0.23152,86386.0,86383.0,0.0503396]
[1741033350806,0.18119463,86386.0,86383.0,0.0503396]
[1741033351009,0.231524,86384.0,86383.0,0.0503396]
[1741033351411,1.157112,86422.0,86383.0,0.02433959]
[1741033351658,0.2315,86393.0,86385.0,0.231519]
[1741033351893,0.00870662,86422.0,86373.0,0.231552]
[1741033352099,0.231539,86379.0,86364.0,0.13071932]
[1741033352297,0.05697244,86423.0,86364.0,0.13071932]
[1741033352473,0.428406,86422.0,86371.0,0.231557]
[1741033352704,0.236041,86421.0,86364.0,0.13071932]
[1741033352865,1.157152,86419.0,86368.0,0.231566]
[1741033353065,0.21638186,86418.0,86364.0,0.13071932]
[1741033353295,0.287848,86417.0,86374.0,0.231549]
[1741033353454,0.231575,86365.0,86364.0,0.13071932]
[1741033353853,0.1,86420.0,86314.0,0.1]
[1741033353854,0.0494,86397.0,86324.0,0.0957894]
[1741033354116,0.44512443,86396.0,86325.0,0.18712]
[1741033354271,2.082106,86395.0,86325.0,0.18712]
[1741033354478,0.231633,86344.0,86324.0,0.0158894]
[1741033354686,0.231596,86357.0,86348.0,0.23162]
[1741033354982,1.157501,86393.0,86343.0,0.231632]
[1741033355181,0.37131174,86392.0,86325.0,0.00039552]
[1741033355383,0.389799,86391.0,86325.0,0.00039552]
[1741033355622,0.00202643,86390.0,86325.0,0.00039552]
[1741033355835,0.0783,86395.0,86326.0,0.00162114]
[1741033356030,0.00202163,86394.0,86326.0,0.10162114]
[1741033356284,0.00202163,86394.0,86328.0,0.3]
[1741033356490,0.00202163,86394.0,86329.0,0.00162091]
[1741033356704,0.00202163,86394.0,86349.0,0.0003396]
[1741033357026,0.00202163,86396.0,86349.0,0.0003396]
[1741033357227,0.231538,86379.0,86349.0,0.0003396]
[1741033357422,0.05806144,86397.0,86349.0,0.0003396]
[1741033357624,0.0489,86416.0,86350.0,0.0016207]
[1741033357852,0.231492,86397.0,86387.0,0.231513]
[1741033358049,0.0489,86416.0,86365.0,0.18708]
[1741033358050,0.02143446,86396.0,86365.0,0.18708]
[1741033358255,0.02143446,86396.0,86366.0,0.00162047]
[1741033358463,0.00202163,86395.0,86366.0,0.00162076]
[1741033358664,0.02143446,86396.0,86367.0,0.00162073]
[1741033358945,0.02143446,86396.0,86395.0,0.231494]
[1741033359152,0.02143446,86396.0,86383.0,0.231526]
[1741033359371,0.02143446,86396.0,86356.0,1.457997]
[1741033359586,0.01930652,86397.0,86396.0,0.231492]
[1741033359814,0.01984449,86412.0,86370.0,0.01928327]
[1741033360027,0.00202163,86411.0,86371.0,0.00162029]
[1741033360216,0.23156,86371.0,86358.0,0.00162049]
[1741033360429,0.1,86427.0,86349.0,0.70045819]
[1741033360638,0.231546,86376.0,86350.0,0.00162084]
[1741033360845,0.347258,86391.0,86350.0,0.00162081]
[1741033361048,0.0455,86393.0,86350.0,0.00162081]
[1741033361049,0.00202163,86390.0,86350.0,0.00162081]
[1741033361296,0.06556977,86393.0,86350.0,0.00162081]
[1741033361505,0.00202163,86392.0,86375.0,0.231546]
[1741033361660,0.231481,86400.0,86376.0,0.00162075]
[1741033361869,0.00202163,86399.0,86349.0,0.0003396]
[1741033362072,0.00202163,86409.0,86350.0,0.00162075]
[1741033362275,0.08770575,86415.0,86350.0,0.00162075]
[1741033362276,0.00202163,86414.0,86356.0,0.0486]
[1741033362489,0.0217436,86414.0,86357.0,0.00162033]
[1741033362691,0.0217436,86414.0,86349.0,0.0003396]
[1741033362692,0.115947,86413.0,86349.0,0.00196027]
[1741033362953,0.00202163,86412.0,86349.0,0.00196027]
[1741033363152,0.00202163,86412.0,86372.0,0.231554]
[1741033363358,0.00202163,86412.0,86349.0,0.0003396]
[1741033363559,0.00202163,86412.0,86350.0,0.00162069]
[1741033363760,0.116869,86411.0,86350.0,0.00162069]
[1741033363966,0.00202163,86410.0,86350.0,0.00162069]
[1741033364173,0.231509,86390.0,86350.0,0.00162069]
[1741033364397,0.0202771,86414.0,86350.0,0.00162069]
[1741033364398,0.0202771,86414.0,86351.0,1.458064]
[1741033364601,0.0202771,86414.0,86361.0,0.3]
[1741033364813,0.0202771,86414.0,86413.0,0.231446]
[1741033365130,0.0202771,86414.0,86376.0,0.3]
[1741033365323,0.0202771,86414.0,86373.0,0.046]
[1741033365324,0.0202771,86414.0,86387.0,0.347272]
[1741033365526,0.0202771,86414.0,86373.0,0.046]
[1741033365527,0.0202771,86414.0,86388.0,0.00162001]
[1741033365730,0.0001184,86414.0,86413.0,0.231446]
[1741033365943,0.01948983,86414.0,86413.0,0.231446]
[1741033366116,0.0001184,86414.0,86413.0,0.231446]
[1741033366513,0.0001184,86414.0,86404.0,0.23147]
[1741033366725,0.0001184,86414.0,86401.0,0.231478]
[1741033367088,0.0001184,86414.0,86402.0,0.00162011]
[1741033367293,0.0001184,86414.0,86409.0,0.231455]
[1741033367409,0.0001184,86414.0,86395.0,0.18688]
[1741033367617,0.231458,86409.0,86395.0,0.18688]
[1741033367818,0.231492,86396.0,86395.0,0.18688]
[1741033368017,0.0001184,86414.0,86372.0,0.0016204]
[1741033368216,0.00214003,86414.0,86372.0,0.0016204]
[1741033368419,0.231484,86399.0,86372.0,0.0016204]
[1741033368618,0.00214003,86414.0,86372.0,0.0016204]
[1741033368619,0.0001184,86414.0,86372.0,0.0016204]
[1741033369129,0.0001184,86414.0,86374.0,0.3]
[1741033369356,0.0001184,86414.0,86413.0,0.231446]
[1741033369766,0.0001184,86414.0,86407.0,0.23146]
[1741033369941,0.0001184,86414.0,86380.0,0.0087536]
[1741033370145,0.00214003,86414.0,86380.0,0.01037384]
[1741033370475,0.0457,86413.0,86380.0,0.0087536]
[1741033370646,0.231525,86384.0,86364.0,0.00196027]
[1741033370845,0.231488,86398.0,86365.0,0.00162075]
[1741033371070,0.0457,86413.0,86365.0,0.00162075]
[1741033371272,0.00202163,86412.0,86373.0,0.231551]
[1741033371546,0.00202163,86412.0,86364.0,0.0003398]
[1741033371547,0.15109863,86412.0,86364.0,0.0003398]
[1741033371847,0.00202163,86412.0,86374.0,0.231549]
[1741033372052,0.00202163,86412.0,86377.0,0.231541]
[1741033372253,0.0457,86413.0,86378.0,0.00162065]
[1741033372473,0.00202163,86412.0,86364.0,0.00045839]
[1741033372757,0.38299963,86412.0,86364.0,0.00045839]
[1741033372927,0.231575,86365.0,86364.0,0.00045839]
[1741033373097,0.05243933,86413.0,86364.0,0.00045839]
[1741033373098,0.231568,86368.0,86364.0,0.00045839]
[1741033373305,0.231575,86365.0,86364.0,0.00045839]
[1741033373933,0.0200817,86365.0,86364.0,0.00045839]
[1741033374136,0.0493,86397.0,86378.0,0.231538]
[1741033374314,0.05799824,86397.0,86364.0,0.00045839]
[1741033374499,0.231477,86402.0,86390.0,0.231506]
[1741033374699,0.347238,86396.0,86364.0,0.0003398]
[1741033374905,0.231546,86376.0,86364.0,0.0003398]
[1741033375106,0.231534,86381.0,86364.0,0.0003398]
[1741033375333,0.0196014,86397.0,86364.0,0.0003398]
[1741033375534,0.231474,86403.0,86364.0,0.0003398]
[1741033375738,0.05539329,86416.0,86365.0,0.0769]
[1741033375941,0.05539329,86416.0,86403.0,0.231471]
[1741033375942,0.00202163,86415.0,86403.0,0.231471]
[1741033376184,0.05539329,86416.0,86365.0,0.0769]
[1741033376395,0.07535245,86416.0,86368.0,0.3]
[1741033376528,0.06655916,86416.0,86369.0,0.00162022]
[1741033376749,0.231448,86413.0,86405.0,0.231467]
[1741033377141,0.0001699,86421.0,86420.0,0.231427]
[1741033377284,0.0001699,86421.0,86394.0,0.1866]
[1741033377488,0.00028832,86421.0,86395.0,0.00161986]
[1741033377738,0.00028832,86421.0,86397.0,0.231487]
[1741033377739,0.231463,86407.0,86397.0,0.231487]
[1741033377954,0.231437,86417.0,86394.0,0.1866]
[1741033378150,0.00028832,86421.0,86395.0,0.00162016]
[1741033378282,0.231458,86409.0,86395.0,0.00162016]
[1741033378491,0.00028832,86421.0,86394.0,0.1866]
[1741033378713,0.00230995,86421.0,86395.0,0.231494]
[1741033378917,0.231451,86412.0,86403.0,0.231471]
[1741033379115,0.00028832,86421.0,86394.0,0.1866]
[1741033379290,0.00202163,86420.0,86394.0,0.1766]
[1741033379694,0.231464,86407.0,86399.0,0.231484]
[1741033379887,0.23146,86408.0,86399.0,0.231483]
[1741033380125,0.00028832,86421.0,86371.0,0.3]
[1741033380337,0.00028832,86421.0,86368.0,0.18652]
[1741033380338,0.08442163,86420.0,86372.0,0.00162039]
[1741033380492,0.632578,86419.0,86367.0,0.7]
[1741033380690,0.00202163,86418.0,86368.0,0.00162057]
[1741033381113,0.00907983,86421.0,86368.0,0.30162057]
[1741033381310,0.00907983,86421.0,86420.0,0.231427]
[1741033381311,0.00028832,86421.0,86420.0,0.231427]
[1741033381512,0.231449,86412.0,86385.0,0.0776]
[1741033381712,0.00028832,86421.0,86385.0,0.0776]
[1741033381713,0.00028832,86421.0,86385.0,0.00162006]
[1741033381988,0.00028832,86421.0,86405.0,0.231466]
[1741033382248,0.00028832,86421.0,86420.0,0.231427]
[1741033383055,3.2e-07,86421.0,86420.0,0.231427]
[1741033383262,3.2e-07,86430.0,86429.0,0.531403]
[1741033383640,0.015549,86447.0,86420.0,0.02421936]
[1741033383840,0.0477,86446.0,86421.0,0.00161923]
[1741033384161,0.00202163,86445.0,86420.0,0.015549]
[1741033384360,0.231365,86444.0,86420.0,0.015549]
[1741033384561,0.0477,86446.0,86394.0,0.1867396]
[1741033384562,0.0477,86446.0,86411.0,0.23307077]
[1741033384764,0.231446,86413.0,86394.0,0.01598744]
[1741033384921,0.231494,86395.0,86394.0,0.0003396]
[1741033385121,0.231494,86395.0,86394.0,6e-07]
[1741033385321,0.231494,86395.0,86394.0,0.00039598]
[1741033385906,0.231529,86382.0,86381.0,0.7]
[1741033386155,0.231529,86382.0,86381.0,0.00011842]
[1741033386282,0.347177,86412.0,86381.0,0.00011842]
[1741033386483,0.00858931,86412.0,86381.0,0.00231625]
[1741033386684,0.00858931,86412.0,86352.0,0.3]
[1741033386685,0.18636,86441.0,86379.0,0.00231625]
[1741033386890,0.3,86439.0,86382.0,0.00231625]
[1741033387097,0.302893,86438.0,86364.0,0.00207892]
[1741033387364,0.02826545,86441.0,86399.0,0.00231625]
[1741033387569,0.02826545,86441.0,86371.0,0.3]
[1741033387570,0.01953233,86441.0,86404.0,0.00231625]
[1741033387719,0.0728658,86446.0,86412.0,0.00231625]
[1741033387920,0.0728658,86446.0,86422.0,0.00231625]
[1741033387921,0.09215732,86446.0,86422.0,0.00231625]
[1741033388127,0.09215732,86446.0,86391.0,0.3]
[1741033388128,0.08326994,86446.0,86439.0,0.231376]
[1741033388285,0.08326994,86446.0,86445.0,0.23136]
[1741033388730,0.00039545,86446.0,86445.0,0.23367625]
[1741033389609,0.00039545,86446.0,86445.0,0.00231625]
[1741033390028,0.00039545,86446.0,86425.0,0.18628]
[1741033390254,0.00039545,86446.0,86426.0,0.00161942]
[1741033390451,0.00039545,86446.0,86433.0,0.00231625]
[1741033390713,0.00039545,86446.0,86437.0,0.00231625]
[1741033390915,0.00039545,86446.0,86428.0,0.00231625]
[1741033391187,0.00039545,86446.0,86421.0,0.00231625]
[1741033391392,0.231433,86418.0,86417.0,0.15495999]
[1741033391544,0.231438,86417.0,86409.0,0.00231625]
[1741033391747,0.231438,86417.0,86388.0,0.1862]
[1741033391748,0.231452,86411.0,86410.0,0.7]
[1741033391956,0.231524,86384.0,86379.0,0.00231625]
[1741033392154,0.3,86410.0,86381.0,0.00231625]
[1741033392392,0.231503,86392.0,86379.0,0.231537]
[1741033392547,0.3,86405.0,86369.0,0.00231625]
[1741033392745,0.231549,86375.0,86362.0,0.231583]
[1741033392975,0.3,86396.0,86378.0,0.00011859]
[1741033393218,0.05607982,86418.0,86378.0,0.00243484]
[1741033393421,0.05607982,86418.0,86382.0,0.00231625]
[1741033393626,0.06766284,86418.0,86383.0,0.00393675]
[1741033393847,0.231469,86405.0,86385.0,0.00231625]
[1741033394054,0.3,86405.0,86392.0,0.00231625]
[1741033394348,0.02016284,86418.0,86396.0,0.00231625]
[1741033394557,0.02016284,86418.0,86385.0,0.0003396]
[1741033394771,0.3,86407.0,86385.0,0.0003396]
[1741033394961,0.231495,86395.0,86385.0,0.0003396]
[1741033395170,0.01952071,86428.0,86385.0,0.0003396]
[1741033395403,0.01952071,86428.0,86393.0,0.231498]
[1741033395597,0.3,86409.0,86394.0,0.00231625]
[1741033395782,0.231409,86427.0,86385.0,0.0003396]
[1741033395976,0.531518,86386.0,86385.0,0.0003396]
[1741033396179,0.531537,86379.0,86378.0,0.00011859]